[Event "Early-Titled-Tuesday-Blitz-September-26-2023"]
[Site "Chess.com"]
[Date "2023.09.26"]
[Round "11"]
[White "Oleksandr_Bortnyk"]
[Black "AlmasRakhmatullaev"]
[Result "0-1"]
[WhiteElo "3006"]
[BlackElo "2805"]
[TimeControl "180+1"]
[EndTime "10:07:13 PDT"]
[Termination "AlmasRakhmatullaev won by resignation"]

1. d4 {[%clk 0:03:00.9]} 1... e6 {[%clk 0:02:59]} 2. Nc3 {[%clk 0:03:01]} 2...
Bb4 {[%clk 0:02:58.2]} 3. e4 {[%clk 0:03:00.1]} 3... d5 {[%clk 0:02:53.9]} 4. e5
{[%clk 0:02:58.2]} 4... Ne7 {[%clk 0:02:44.6]} 5. Bd2 {[%clk 0:02:58.2]} 5... b6
{[%clk 0:02:35.2]} 6. a3 {[%clk 0:02:58.2]} 6... Bxc3 {[%clk 0:02:35.1]} 7. Bxc3
{[%clk 0:02:59.1]} 7... Ba6 {[%clk 0:02:30.8]} 8. Ne2 {[%clk 0:02:57.6]} 8...
Qd7 {[%clk 0:02:27.4]} 9. h4 {[%clk 0:02:58]} 9... c5 {[%clk 0:02:26.2]} 10. h5
{[%clk 0:02:57.9]} 10... h6 {[%clk 0:02:25.7]} 11. g4 {[%clk 0:02:57.9]} 11...
Nbc6 {[%clk 0:02:25.3]} 12. f4 {[%clk 0:02:51.7]} 12... f6 {[%clk 0:02:14.1]}
13. b4 {[%clk 0:02:46.1]} 13... cxb4 {[%clk 0:02:06.6]} 14. axb4 {[%clk
0:02:44.6]} 14... Bc4 {[%clk 0:02:05.5]} 15. exf6 {[%clk 0:02:43.4]} 15... gxf6
{[%clk 0:02:05.4]} 16. Ng3 {[%clk 0:02:39.7]} 16... Rg8 {[%clk 0:02:00.8]} 17.
b5 {[%clk 0:02:28.6]} 17... Nd8 {[%clk 0:02:00.3]} 18. Bxc4 {[%clk 0:02:20.1]}
18... dxc4 {[%clk 0:02:01.2]} 19. Ne4 {[%clk 0:02:20.6]} 19... Nd5 {[%clk
0:02:01.3]} 20. Qe2 {[%clk 0:02:20.8]} 20... Kf7 {[%clk 0:01:54]} 21. Bd2 {[%clk
0:02:08]} 21... Nb7 {[%clk 0:01:51]} 22. g5 {[%clk 0:02:04.6]} 22... Nd6 {[%clk
0:01:50.9]} 23. g6+ {[%clk 0:01:44.4]} 23... Kg7 {[%clk 0:01:46.6]} 24. c3
{[%clk 0:01:34.3]} 24... Nxe4 {[%clk 0:01:38.5]} 25. Qxe4 {[%clk 0:01:35.2]}
25... Rge8 {[%clk 0:01:37]} 26. Kf2 {[%clk 0:01:26.2]} 26... Qxb5 {[%clk
0:01:13.6]} 27. Rhe1 {[%clk 0:01:22.4]} 27... Qd7 {[%clk 0:01:06.5]} 28. Ra6
{[%clk 0:01:00]} 28... f5 {[%clk 0:01:03.8]} 29. Qe5+ {[%clk 0:00:56.2]} 29...
Nf6 {[%clk 0:00:52.7]} 30. Rea1 {[%clk 0:00:54.5]} 30... Re7 {[%clk 0:00:41.2]}
31. Bc1 {[%clk 0:00:48.4]} 31... Qd5 {[%clk 0:00:34.4]} 32. Ba3 {[%clk
0:00:39.1]} 32... Rb7 {[%clk 0:00:29.7]} 33. Bd6 {[%clk 0:00:17.8]} 33... Qxd6
{[%clk 0:00:28.4]} 34. Qxd6 {[%clk 0:00:07.7]} 34... Ne4+ {[%clk 0:00:28.6]} 35.
Kf3 {[%clk 0:00:08.6]} 35... Nxd6 {[%clk 0:00:29.1]} 36. R6a4 {[%clk 0:00:06.4]}
36... a5 {[%clk 0:00:27.5]} 37. Re1 {[%clk 0:00:06]} 37... Ne4 {[%clk
0:00:27.2]} 38. Ra3 {[%clk 0:00:01.8]} 38... b5 {[%clk 0:00:26.1]} 39. Ke3
{[%clk 0:00:02.5]} 39... Rba7 {[%clk 0:00:22.3]} 40. Rb1 {[%clk 0:00:02.6]}
40... Rb7 {[%clk 0:00:18.5]} 41. d5 {[%clk 0:00:03.1]} 41... exd5 {[%clk
0:00:18.6]} 42. Kd4 {[%clk 0:00:03.9]} 42... a4 {[%clk 0:00:15.2]} 43. Ra2
{[%clk 0:00:03.3]} 43... a3 {[%clk 0:00:14]} 44. Rba1 {[%clk 0:00:03.2]} 44...
Rba7 {[%clk 0:00:12.8]} 45. Rb1 {[%clk 0:00:03.8]} 45... Ra5 {[%clk 0:00:12.5]}
46. Rba1 {[%clk 0:00:03.7]} 46... Kf6 {[%clk 0:00:11.6]} 47. Rg1 {[%clk
0:00:03.8]} 47... Kg7 {[%clk 0:00:11.2]} 48. Re1 {[%clk 0:00:04.3]} 48... b4
{[%clk 0:00:09.8]} 49. cxb4 {[%clk 0:00:04.4]} 49... Ra4 {[%clk 0:00:10.4]} 50.
Rb1 {[%clk 0:00:04.5]} 50... c3 {[%clk 0:00:09.9]} 51. Kxd5 {[%clk 0:00:03.3]}
51... Rd8+ {[%clk 0:00:07.6]} 52. Ke5 {[%clk 0:00:03.8]} 52... Rd2 {[%clk
0:00:08.3]} 53. Raa1 {[%clk 0:00:03.7]} 53... Rb2 {[%clk 0:00:07.1]} 54. Rc1
{[%clk 0:00:03]} 54... c2 {[%clk 0:00:06.7]} 55. Kxf5 {[%clk 0:00:02.7]} 55...
Nc3 {[%clk 0:00:07.3]} 56. b5 {[%clk 0:00:02.6]} 56... Rb1 {[%clk 0:00:07.3]}
57. b6 {[%clk 0:00:02.2]} 57... Rxa1 {[%clk 0:00:06.9]} 58. b7 {[%clk
0:00:02.4]} 58... Rb4 {[%clk 0:00:07.3]} 59. Rxa1 {[%clk 0:00:02.3]} 59... Rb5+
{[%clk 0:00:07.7]} 60. Kg4 {[%clk 0:00:02.1]} 60... Rxb7 {[%clk 0:00:08.4]} 61.
Rc1 {[%clk 0:00:01.9]} 61... Rb2 {[%clk 0:00:08.2]} 62. Kf5 {[%clk 0:00:02.2]}
62... a2 {[%clk 0:00:08.7]} 63. Ke6 {[%clk 0:00:02.6]} 63... Nb1 {[%clk
0:00:08.2]} 64. Rxc2 {[%clk 0:00:03.2]} 64... Rxc2 {[%clk 0:00:08.5]} 65. Kf5
{[%clk 0:00:03.1]} 65... a1=Q {[%clk 0:00:08.8]} 66. Kg4 {[%clk 0:00:04]} 66...
Qf6 {[%clk 0:00:08.7]} 67. Kh3 {[%clk 0:00:04.1]} 67... Rc5 {[%clk 0:00:08]} 68.
Kg4 {[%clk 0:00:04.5]} 68... Qf5+ {[%clk 0:00:08.4]} 69. Kg3 {[%clk 0:00:05.2]}
69... Rc3+ {[%clk 0:00:08.5]} 0-1

[Event "Early-Titled-Tuesday-Blitz-September-26-2023"]
[Site "Chess.com"]
[Date "2023.09.26"]
[Round "11"]
[White "Grossboss19"]
[Black "vedantgoswami"]
[Result "0-1"]
[WhiteElo "2507"]
[BlackElo "2377"]
[TimeControl "180+1"]
[EndTime "10:07:24 PDT"]
[Termination "vedantgoswami won by checkmate"]

1. d4 {[%clk 0:02:57.5]} 1... d5 {[%clk 0:02:57.1]} 2. Nc3 {[%clk 0:02:58.4]}
2... Nf6 {[%clk 0:02:50.9]} 3. Bf4 {[%clk 0:02:57.1]} 3... c6 {[%clk 0:02:49.3]}
4. e3 {[%clk 0:02:50.2]} 4... Bg4 {[%clk 0:02:44.4]} 5. f3 {[%clk 0:02:42.2]}
5... Bh5 {[%clk 0:02:40.6]} 6. Bd3 {[%clk 0:02:40.6]} 6... e6 {[%clk 0:02:39.8]}
7. h4 {[%clk 0:02:36.2]} 7... Bg6 {[%clk 0:02:39.5]} 8. h5 {[%clk 0:02:32.6]}
8... Bxd3 {[%clk 0:02:38.7]} 9. Qxd3 {[%clk 0:02:32.1]} 9... Nbd7 {[%clk
0:02:33.2]} 10. g4 {[%clk 0:02:30.7]} 10... h6 {[%clk 0:02:27.7]} 11. Nd1 {[%clk
0:02:28.5]} 11... Qb6 {[%clk 0:02:25.5]} 12. c3 {[%clk 0:02:27.1]} 12... c5
{[%clk 0:02:21.4]} 13. Ne2 {[%clk 0:02:26.6]} 13... Bd6 {[%clk 0:02:16.2]} 14.
Bxd6 {[%clk 0:02:16.3]} 14... Qxd6 {[%clk 0:02:15.4]} 15. Nf2 {[%clk 0:02:17.2]}
15... e5 {[%clk 0:02:12.8]} 16. O-O-O {[%clk 0:02:13.5]} 16... O-O-O {[%clk
0:02:05.9]} 17. Ng3 {[%clk 0:02:08]} 17... c4 {[%clk 0:01:45.3]} 18. Nf5 {[%clk
0:01:59.1]} 18... Qa6 {[%clk 0:01:39.6]} 19. Qb1 {[%clk 0:01:55.2]} 19... Rh7
{[%clk 0:01:24.6]} 20. a3 {[%clk 0:01:52.5]} 20... Re8 {[%clk 0:01:20.4]} 21.
Rhe1 {[%clk 0:01:46.1]} 21... e4 {[%clk 0:01:15.4]} 22. fxe4 {[%clk 0:01:36.7]}
22... Nxe4 {[%clk 0:01:14.9]} 23. Nxe4 {[%clk 0:01:33.8]} 23... Rxe4 {[%clk
0:01:14.1]} 24. Ng3 {[%clk 0:01:33.7]} 24... Nf6 {[%clk 0:01:09.1]} 25. Nxe4
{[%clk 0:01:29.7]} 25... Nxe4 {[%clk 0:01:08.6]} 26. Rf1 {[%clk 0:01:30]} 26...
f6 {[%clk 0:01:06.3]} 27. Rf5 {[%clk 0:01:28.3]} 27... Qe6 {[%clk 0:00:59.3]}
28. Re1 {[%clk 0:01:18.1]} 28... Rh8 {[%clk 0:00:58.4]} 29. Qc2 {[%clk
0:01:17.4]} 29... b5 {[%clk 0:00:52.9]} 30. a4 {[%clk 0:01:16.1]} 30... a6
{[%clk 0:00:51.4]} 31. Kd1 {[%clk 0:01:14.8]} 31... Re8 {[%clk 0:00:49.4]} 32.
Rf4 {[%clk 0:01:11.7]} 32... Kc7 {[%clk 0:00:48.6]} 33. Ke2 {[%clk 0:01:10.6]}
33... Ng5 {[%clk 0:00:40.3]} 34. Kf1 {[%clk 0:00:58.2]} 34... Qd6 {[%clk
0:00:36.5]} 35. axb5 {[%clk 0:00:48.1]} 35... axb5 {[%clk 0:00:36.1]} 36. Kg2
{[%clk 0:00:45.8]} 36... Rxe3 {[%clk 0:00:34.5]} 37. Rxe3 {[%clk 0:00:39.4]}
37... Qxf4 {[%clk 0:00:33.8]} 38. Qe2 {[%clk 0:00:33.9]} 38... Ne4 {[%clk
0:00:29.1]} 39. Qf3 {[%clk 0:00:26.8]} 39... Qg5 {[%clk 0:00:27.9]} 40. Re2
{[%clk 0:00:24.6]} 40... Kc6 {[%clk 0:00:27]} 41. Qf5 {[%clk 0:00:22.2]} 41...
Qxf5 {[%clk 0:00:21.9]} 42. gxf5 {[%clk 0:00:19.8]} 42... b4 {[%clk 0:00:22.3]}
43. cxb4 {[%clk 0:00:17.4]} 43... Kb5 {[%clk 0:00:22.3]} 44. Kf3 {[%clk
0:00:17.9]} 44... Kxb4 {[%clk 0:00:22.3]} 45. Rg2 {[%clk 0:00:18.4]} 45... Ng5+
{[%clk 0:00:21.7]} 46. Ke3 {[%clk 0:00:18.5]} 46... Kb3 {[%clk 0:00:21.4]} 47.
Kf4 {[%clk 0:00:14.8]} 47... Kb4 {[%clk 0:00:20.9]} 48. Re2 {[%clk 0:00:12.7]}
48... Kb3 {[%clk 0:00:20.5]} 49. Re7 {[%clk 0:00:11.1]} 49... Kxb2 {[%clk
0:00:19]} 50. Ke3 {[%clk 0:00:11.7]} 50... Ne4 {[%clk 0:00:18.1]} 51. Rb7+
{[%clk 0:00:11.7]} 51... Kc2 {[%clk 0:00:17.8]} 52. Rxg7 {[%clk 0:00:11.8]}
52... c3 {[%clk 0:00:17.1]} 53. Rb7 {[%clk 0:00:10.2]} 53... Kd1 {[%clk
0:00:16.8]} 54. Rc7 {[%clk 0:00:02.3]} 54... c2 {[%clk 0:00:16.4]} 55. Kd3
{[%clk 0:00:01.6]} 55... c1=Q {[%clk 0:00:15.7]} 56. Rxc1+ {[%clk 0:00:02.5]}
56... Kxc1 {[%clk 0:00:15.7]} 57. Ke3 {[%clk 0:00:01.9]} 57... Kc2 {[%clk
0:00:15.6]} 58. Kf4 {[%clk 0:00:02.8]} 58... Kc3 {[%clk 0:00:15.5]} 59. Kf3
{[%clk 0:00:03.7]} 59... Kxd4 {[%clk 0:00:15.5]} 60. Kg4 {[%clk 0:00:04.6]}
60... Ke5 {[%clk 0:00:15.3]} 61. Kh3 {[%clk 0:00:05.5]} 61... Kxf5 {[%clk
0:00:15.3]} 62. Kh2 {[%clk 0:00:06.4]} 62... Kg5 {[%clk 0:00:15.5]} 63. Kh1
{[%clk 0:00:07.3]} 63... Kxh5 {[%clk 0:00:15.8]} 64. Kg1 {[%clk 0:00:08.2]}
64... d4 {[%clk 0:00:16.1]} 65. Kf1 {[%clk 0:00:09.1]} 65... Kg4 {[%clk
0:00:16.4]} 66. Ke1 {[%clk 0:00:10]} 66... Kf4 {[%clk 0:00:16.7]} 67. Kd1 {[%clk
0:00:10.9]} 67... d3 {[%clk 0:00:17]} 68. Kc1 {[%clk 0:00:07.5]} 68... h5 {[%clk
0:00:17.3]} 69. Kb2 {[%clk 0:00:08.4]} 69... h4 {[%clk 0:00:17.3]} 70. Ka3
{[%clk 0:00:09.3]} 70... h3 {[%clk 0:00:17.6]} 71. Kb3 {[%clk 0:00:10.2]} 71...
h2 {[%clk 0:00:18]} 72. Ka4 {[%clk 0:00:11.1]} 72... d2 {[%clk 0:00:18]} 73. Kb5
{[%clk 0:00:07.4]} 73... d1=Q {[%clk 0:00:17.5]} 74. Kb6 {[%clk 0:00:08.3]}
74... Ng5 {[%clk 0:00:17.3]} 75. Ka6 {[%clk 0:00:09.2]} 75... Nh3 {[%clk
0:00:17.2]} 76. Ka7 {[%clk 0:00:07.5]} 76... Kg3 {[%clk 0:00:16.6]} 77. Kb6
{[%clk 0:00:08.4]} 77... Kg4 {[%clk 0:00:16.9]} 78. Ka7 {[%clk 0:00:09.3]} 78...
Kf5 {[%clk 0:00:16.9]} 79. Kb8 {[%clk 0:00:10.2]} 79... Ke6 {[%clk 0:00:17.1]}
80. Ka7 {[%clk 0:00:10.7]} 80... h1=Q {[%clk 0:00:15.2]} 81. Kb8 {[%clk
0:00:11.6]} 81... Qc2 {[%clk 0:00:15.1]} 82. Ka7 {[%clk 0:00:12.5]} 82... Qhb1
{[%clk 0:00:14.4]} 83. Ka8 {[%clk 0:00:12]} 83... Qca2# {[%clk 0:00:13.5]} 0-1

[Event "Early-Titled-Tuesday-Blitz-September-26-2023"]
[Site "Chess.com"]
[Date "2023.09.26"]
[Round "11"]
[White "Chessbard1972"]
[Black "Alphafischer2019"]
[Result "0-1"]
[WhiteElo "2388"]
[BlackElo "2589"]
[TimeControl "180+1"]
[EndTime "10:07:56 PDT"]
[Termination "Alphafischer2019 won on time"]

1. e4 {[%clk 0:03:00.9]} 1... c5 {[%clk 0:02:59.8]} 2. Nc3 {[%clk 0:03:00.4]}
2... Nc6 {[%clk 0:02:59.9]} 3. g3 {[%clk 0:03:00.3]} 3... Nd4 {[%clk 0:03:00.7]}
4. Bg2 {[%clk 0:02:59.5]} 4... g6 {[%clk 0:03:01.1]} 5. d3 {[%clk 0:02:59.5]}
5... Bg7 {[%clk 0:03:01.5]} 6. Be3 {[%clk 0:02:59.3]} 6... e6 {[%clk 0:03:00.8]}
7. Qd2 {[%clk 0:02:57.8]} 7... d6 {[%clk 0:02:58.9]} 8. Nd1 {[%clk 0:02:55.1]}
8... Ne7 {[%clk 0:02:57.7]} 9. c3 {[%clk 0:02:55.1]} 9... Ndc6 {[%clk
0:02:57.6]} 10. Ne2 {[%clk 0:02:54.3]} 10... b5 {[%clk 0:02:53.1]} 11. Bh6
{[%clk 0:02:53.7]} 11... O-O {[%clk 0:02:50]} 12. h4 {[%clk 0:02:52.9]} 12... f6
{[%clk 0:02:45.3]} 13. Bxg7 {[%clk 0:02:49.5]} 13... Kxg7 {[%clk 0:02:44.9]} 14.
h5 {[%clk 0:02:46.7]} 14... g5 {[%clk 0:02:45.3]} 15. f4 {[%clk 0:02:45.5]}
15... h6 {[%clk 0:02:45.3]} 16. Ne3 {[%clk 0:02:40.1]} 16... Bb7 {[%clk
0:02:42]} 17. d4 {[%clk 0:02:28.8]} 17... cxd4 {[%clk 0:02:38.6]} 18. Nxd4
{[%clk 0:02:22.5]} 18... Nxd4 {[%clk 0:02:36.2]} 19. Qxd4 {[%clk 0:02:21.5]}
19... e5 {[%clk 0:02:30.8]} 20. Qd2 {[%clk 0:02:17]} 20... Qb6 {[%clk
0:02:19.5]} 21. O-O {[%clk 0:02:06.2]} 21... Rad8 {[%clk 0:02:12.5]} 22. fxg5
{[%clk 0:02:04.3]} 22... fxg5 {[%clk 0:02:10.6]} 23. Kh2 {[%clk 0:02:02.9]}
23... Bc8 {[%clk 0:02:01.2]} 24. Bh3 {[%clk 0:01:56.1]} 24... Bxh3 {[%clk
0:01:41.5]} 25. Kxh3 {[%clk 0:01:55.5]} 25... Qc6 {[%clk 0:01:42.2]} 26. Nd5
{[%clk 0:01:46.7]} 26... Nxd5 {[%clk 0:01:38.7]} 27. exd5 {[%clk 0:01:46.5]}
27... Qd7+ {[%clk 0:01:38.6]} 28. g4 {[%clk 0:01:42.2]} 28... Rf4 {[%clk
0:01:08.2]} 29. Rxf4 {[%clk 0:01:41.1]} 29... gxf4 {[%clk 0:01:07.1]} 30. Qd3
{[%clk 0:01:34.4]} 30... Qf7 {[%clk 0:00:58.9]} 31. Rg1 {[%clk 0:01:32.7]} 31...
Kh8 {[%clk 0:00:51.4]} 32. Qe4 {[%clk 0:01:28.6]} 32... Rf8 {[%clk 0:00:49.4]}
33. Rf1 {[%clk 0:01:15.1]} 33... Rg8 {[%clk 0:00:41.8]} 34. Rg1 {[%clk 0:01:11]}
34... a6 {[%clk 0:00:36.3]} 35. b3 {[%clk 0:01:10.7]} 35... Rg5 {[%clk
0:00:35.2]} 36. c4 {[%clk 0:01:08.9]} 36... Qd7 {[%clk 0:00:31.7]} 37. Kh4
{[%clk 0:01:06.1]} 37... Rg8 {[%clk 0:00:20.7]} 38. Kh3 {[%clk 0:01:05.6]} 38...
Qf7 {[%clk 0:00:12.7]} 39. c5 {[%clk 0:01:03.6]} 39... Qe7 {[%clk 0:00:08.2]}
40. c6 {[%clk 0:00:59.7]} 40... Rf8 {[%clk 0:00:08.9]} 41. Rf1 {[%clk
0:00:58.3]} 41... Rf6 {[%clk 0:00:06.6]} 42. Rc1 {[%clk 0:00:55.9]} 42... Qc7
{[%clk 0:00:07]} 43. a4 {[%clk 0:00:52.7]} 43... Kg7 {[%clk 0:00:06.4]} 44. axb5
{[%clk 0:00:51.9]} 44... axb5 {[%clk 0:00:07.3]} 45. Ra1 {[%clk 0:00:51.6]}
45... f3 {[%clk 0:00:07.7]} 46. Rf1 {[%clk 0:00:49.8]} 46... Qf7 {[%clk
0:00:07.6]} 47. Kg3 {[%clk 0:00:46.1]} 47... f2 {[%clk 0:00:08.2]} 48. Qe3
{[%clk 0:00:44.6]} 48... Qxd5 {[%clk 0:00:08.6]} 49. c7 {[%clk 0:00:39.6]} 49...
Qc6 {[%clk 0:00:07.9]} 50. Rxf2 {[%clk 0:00:34.9]} 50... Rxf2 {[%clk 0:00:07.5]}
51. Qxf2 {[%clk 0:00:30.2]} 51... Qxc7 {[%clk 0:00:08]} 52. Qf5 {[%clk 0:00:30]}
52... Qf7 {[%clk 0:00:07.2]} 53. Qd3 {[%clk 0:00:27.3]} 53... Qf4+ {[%clk
0:00:07.8]} 54. Kh3 {[%clk 0:00:27.4]} 54... Qd4 {[%clk 0:00:04.3]} 55. Qxb5
{[%clk 0:00:26.7]} 55... Kf6 {[%clk 0:00:04.2]} 56. Qb8 {[%clk 0:00:24.5]} 56...
Qe3+ {[%clk 0:00:04.6]} 57. Kh2 {[%clk 0:00:23.6]} 57... Qf2+ {[%clk 0:00:04.8]}
58. Kh3 {[%clk 0:00:22.7]} 58... Qf3+ {[%clk 0:00:05.4]} 59. Kh2 {[%clk
0:00:23.1]} 59... Qxg4 {[%clk 0:00:05.4]} 60. Qxd6+ {[%clk 0:00:22.2]} 60... Kf5
{[%clk 0:00:05.3]} 61. Qxh6 {[%clk 0:00:20.2]} 61... Qh4+ {[%clk 0:00:05.8]} 62.
Kg2 {[%clk 0:00:19.9]} 62... Qg4+ {[%clk 0:00:06.5]} 63. Kf2 {[%clk 0:00:19.9]}
63... Qd4+ {[%clk 0:00:07.2]} 64. Ke2 {[%clk 0:00:19.1]} 64... Qb2+ {[%clk
0:00:07.7]} 65. Kf1 {[%clk 0:00:15.5]} 65... Qb1+ {[%clk 0:00:07]} 66. Kf2
{[%clk 0:00:15.2]} 66... Qa2+ {[%clk 0:00:07.2]} 67. Kf1 {[%clk 0:00:14.8]}
67... e4 {[%clk 0:00:06]} 68. Qg6+ {[%clk 0:00:14.3]} 68... Kf4 {[%clk
0:00:06.5]} 69. Qf6+ {[%clk 0:00:14.3]} 69... Ke3 {[%clk 0:00:06.6]} 70. Qc3+
{[%clk 0:00:14.4]} 70... Kf4 {[%clk 0:00:06.3]} 71. Qc7+ {[%clk 0:00:13.6]}
71... Kf3 {[%clk 0:00:06]} 72. Qf7+ {[%clk 0:00:12.1]} 72... Ke3 {[%clk
0:00:05.3]} 73. h6 {[%clk 0:00:11.2]} 73... Qe2+ {[%clk 0:00:04.4]} 74. Kg1
{[%clk 0:00:10.9]} 74... Qg4+ {[%clk 0:00:05.3]} 75. Kf1 {[%clk 0:00:09]} 75...
Qh3+ {[%clk 0:00:05.7]} 76. Kg1 {[%clk 0:00:07.8]} 76... Qxh6 {[%clk 0:00:05.7]}
77. Qf2+ {[%clk 0:00:06.6]} 77... Kd3 {[%clk 0:00:06.1]} 78. Qf1+ {[%clk
0:00:07.1]} 78... Kd4 {[%clk 0:00:05.2]} 79. Qc4+ {[%clk 0:00:07]} 79... Ke5
{[%clk 0:00:04.4]} 80. Qc5+ {[%clk 0:00:07.3]} 80... Kf4 {[%clk 0:00:02.2]} 81.
Qc1+ {[%clk 0:00:06.8]} 81... e3 {[%clk 0:00:03]} 82. Qc4+ {[%clk 0:00:07]}
82... Kf3 {[%clk 0:00:03.8]} 83. Qd5+ {[%clk 0:00:07.2]} 83... Kg3 {[%clk
0:00:04.5]} 84. Qe5+ {[%clk 0:00:06.8]} 84... Kf3 {[%clk 0:00:05.2]} 85. Qd5+
{[%clk 0:00:07]} 85... Ke2 {[%clk 0:00:05.5]} 86. Qc4+ {[%clk 0:00:07.1]} 86...
Kd2 {[%clk 0:00:05.2]} 87. Qd4+ {[%clk 0:00:07.4]} 87... Kc2 {[%clk 0:00:05.9]}
88. Qc4+ {[%clk 0:00:07.8]} 88... Kb2 {[%clk 0:00:06.6]} 89. b4 {[%clk 0:00:07]}
89... Qg6+ {[%clk 0:00:05.8]} 90. Kf1 {[%clk 0:00:06.7]} 90... Qf6+ {[%clk
0:00:06.1]} 91. Kg1 {[%clk 0:00:05.4]} 91... Qf2+ {[%clk 0:00:07]} 92. Kh1
{[%clk 0:00:05.6]} 92... e2 {[%clk 0:00:07.6]} 0-1